Cogmind - Beta 16 @@@ ROGUE MODE // 2026.01.26 @ 18:25:55 Player: ILikeVoltron Result: Destroyed by G-47 Trooper with Particle Gun Performance ------------- Evolutions (2) 1000 Regions Visited (4) 800 Robots Destroyed (53) 265 Value Destroyed (1498) 1498 Prototype IDs (0) 0 Alien Tech Used (0) 0 Bonus (0) 0 TOTAL SCORE: 3563 Bonus ------- None Cogmind --------- Core Integrity 0/550 Matter 300/300 Energy 79/100 System Corruption 9% Temperature Cool (19) Movement Core (1400) Ox27 Location -8/Materials Parts ------- > --- POWER (1) -------- (None) > --- PROPULSION (5) --- (None) > --- UTILITY (3) ------ Huge Storage Unit Advanced Targeting Computer > --- WEAPON (2) ------- Heavy Flail > --- INVENTORY (25) --- Light Treads Light Treads Aluminum Leg Improved Aluminum Leg Improved Heat Sink Large Storage Unit Improved Terrain Scanner Improved Terrain Scan Processor Seismic Detector Improved Targeting Computer Target Analyzer Hardened Light Armor Plating Hardened Light Armor Plating Hacking Suite Tractor Beam Field Laser Heavy Particle Gun Heavy Assault Rifle Heavy Assault Rifle Minigun Rocket Launcher Mining Laser Plasma Cutter Peak State ------------ > --- POWER ------------ Light Ion Engine > --- PROPULSION ------- Light Treads Light Treads Light Treads Armored Treads Armored Treads > --- UTILITY ---------- Huge Storage Unit Recoil Stabilizer Medium Armor Plating > --- WEAPON ----------- EM Pulse Cannon Gauss Rifle > --- INVENTORY -------- Light Treads Light Treads Light Treads Light Treads Aluminum Leg Heat Sink Large Storage Unit Improved Terrain Scanner Improved Terrain Scan Processor Seismic Detector Improved Targeting Computer Advanced Targeting Computer Target Analyzer Shield Generator Hacking Suite Tractor Beam Field Laser Heavy Particle Gun Heavy Assault Rifle Heavy Assault Rifle Minigun Rocket Launcher Mining Laser Plasma Cutter Heavy Flail [Rating: 28] Favorites ----------- Power Ion Engine Engine Ion Engine Power Core Light Nuclear Core Propulsion Light Treads Treads Light Treads Leg Aluminum Leg Utility Huge Storage Unit Device Tractor Beam Storage Huge Storage Unit Processor Advanced Targeting Computer Protection Medium Armor Plating Weapon Light Assault Rifle Energy Cannon Ion Cannon Ballistic Gun Light Assault Rifle Launcher Grenade Launcher Impact Weapon Heavy Flail Build | -11 -10 -9 -9 -8 ------- Run | Yrd Mat Mat Min Mat Slots Evolved 4 | . . 2 . 2 Power . | . . . . . Propulsion 3 | . . 2 . 1 Utility 1 | . . . . 1 Weapon . | . . . . . Parts Attached 47 | 2 3 4 1 37 Power 2 | . . . . 2 Engine 1 | . . . . 1 Core 1 | . . . . 1 Reactor . | . . . . . Propulsion 21 | . 2 3 . 16 Treads 15 | . 2 3 . 10 Leg 6 | . . . . 6 Wheel . | . . . . . Hover . | . . . . . Flight . | . . . . . Utility 14 | 1 1 1 . 11 Device 5 | 1 . . . 4 Storage 2 | . 1 . . 1 Processor 1 | . . . . 1 Hackware . | . . . . . Protection 6 | . . 1 . 5 Artifact . | . . . . . Weapon 10 | 1 . . 1 8 Energy Gun . | . . . . . Energy Cannon 2 | . . . . 2 Ballistic Gun 6 | 1 . . . 5 Ballistic Cannon . | . . . . . Launcher 1 | . . . 1 . Special Weapon . | . . . . . Impact Weapon 1 | . . . . 1 Slashing Weapon . | . . . . . Piercing Weapon . | . . . . . Special Melee Weapon . | . . . . . Unidentified Prototypes . | . . . . . Parts Lost 39 | . 1 . . 38 Power 3 | . . . . 3 Propulsion 19 | . 1 . . 18 Utility 10 | . . . . 10 Weapon 7 | . . . . 7 Highest Loss Streak 20 | . 1 . . 20 To Critical Strikes . | . . . . . Average Backups 16 | 6 9 15 17 19 Power . | 1 1 1 1 . Propulsion 3 | 4 3 3 4 2 Utility 7 | . 2 7 8 9 Weapon 4 | 1 1 2 3 6 Tool/Special . | . . . . . Unused Backups 39 | 6 5 . . 28 Power 2 | 1 . . . 1 Propulsion 13 | 3 4 . . 6 Utility 13 | 1 . . . 12 Weapon 10 | 1 1 . . 8 Tool/Special 1 | . . . . 1 Average Slot Usage (%) 94 | . 100 99 100 91 Engine 8 | . 14 11 11 5 Treads 34 | . 12 43 44 34 Leg 5 | . 15 . . 6 Device 4 | . 14 1 . 4 Storage 10 | . 14 11 11 9 Processor 1 | . . . . 2 Protection 9 | . . 9 11 10 Energy Cannon 3 | . . . . 5 Ballistic Gun 15 | . 28 22 12 10 Launcher 1 | . . . 9 1 Peak Build Rating 28 | 8 8 15 15 28 Average Rating 18 | 6 7 14 15 22 On Entrance 10 | 6 8 8 15 15 Avg Prop Armor Cover (%) 3 | . . . . 3 Naked Turns . | . . . . . Heaviest Build 107 | 14 89 93 94 107 Greatest Support 109 | 20 40 89 89 109 Greatest Overweight (x) 14 | . 2 1 1 14 Average Overweight (x) . | . . . 1 . Largest Inventory Capacity 25 | 8 25 25 25 25 Average Capacity 21 | 8 15 25 25 22 Most Carried 25 | 8 12 17 18 25 Average Carried 16 | 6 9 15 17 19 Final Capacity 25 | 8 25 25 25 25 Final Carried 23 | 8 12 17 18 23 Class Distribution -------------------- 56% | Mutant 43% | Scavenger-Mutant Dominant Class ---------------- Mutant | -10/Materials Mutant | -9/Materials Mutant | -9/Mines Scavenger-Mutant | -8/Materials Resources | -11 -10 -9 -9 -8 ----------- Run | Yrd Mat Mat Min Mat Matter Collected 1155 | 276 20 170 17 672 Remotely 94 | 54 20 20 . . Salvage Created 1865 | 110 35 321 17 1382 Parts 124 | 16 5 23 4 76 Haulers Intercepted 1 | . . . . 1 Recyclers Shooed 1 | . . . . 1 Parts Field Recycled . | . . . . . Retrieved Matter . | . . . . . Parts Self-Destructed . | . . . . . Prevented . | . . . . . Parts Restored . | . . . . . Kills | -11 -10 -9 -9 -8 ------- Run | Yrd Mat Mat Min Mat Combat Hostiles Destroyed 39 | . 3 9 3 24 Melee 2 | . . . . 2 Guns 27 | . 2 9 1 15 Cannons 6 | . . . . 6 AOE 4 | . 1 . 2 1 Classes Destroyed 11 | 2 1 2 . 6 Builder 5 | . . . . 5 Tunneler 4 | 4 . . . . Hauler 1 | . . . . 1 Recycler 2 | 1 . . . 1 Mechanic 1 | . . . . 1 Watcher 1 | . . . . 1 Swarmer 12 | . 3 4 3 2 Grunt 16 | . . 3 . 13 Duelist 1 | . . . . 1 Sentry 8 | . . 2 . 6 Hunter 2 | . . . . 2 Best Kill Streak 5 | 4 3 5 3 4 Combat Bots Only 5 | . 3 5 3 3 Max Kills in Single Turn 2 | 1 1 1 2 2 Gunslinging . | . . . . . Exploded 2 | . 1 . 2 1 Melee 1 | . . . . 1 Uniques/NPCs Destroyed . | . . . . . Combat | -11 -10 -9 -9 -8 -------- Run | Yrd Mat Mat Min Mat Hostile Shots Fired 470 | . 9 55 4 402 Missed 117 | . 5 18 2 92 Hits 353 | . 4 37 2 310 Melee 4 | . . . . 4 Projectile 349 | . 4 37 2 306 Critical Strikes 15 | . . 1 . 14 Actively Blocked 3 | . . . . 3 Damage Taken 5532 | . 118 423 12 4979 Core 585 | . 8 18 6 553 Absorbed by Shields 92 | . . . . 92 Redirected to Shielding 38 | . . . . 38 Core Remaining (%) 96 | 100 96 . 94 . Volleys Fired 134 | 14 5 25 3 87 Largest 2 | 2 2 2 2 2 Hottest 91 | 40 40 40 50 91 Shots Fired 242 | 28 10 50 5 149 Gun 203 | 28 10 50 4 111 Cannon 33 | . . . . 33 Launcher 6 | . . . 1 5 Special . | . . . . . Kinetic 203 | 28 10 50 4 111 Thermal 24 | . . . . 24 Explosive 6 | . . . 1 5 Electromagnetic 9 | . . . . 9 Robot Hit Streak 13 | 5 2 13 2 13 Robot Miss Streak 4 | 2 4 3 2 3 Penetration Max 1 | . . . . 1 Secondary Targets 2 | . . . . 2 Max Gunslinging Chain 1 | . . . . 1 Shots Hit Robots 174 | 16 3 34 2 119 Core Hits 88 | 8 3 17 3 57 Critical Kills . | . . . . . Critical Parts Destroyed 1 | . . . . 1 Critical Strikes 1 | . . . . 1 Destroy 1 | . . . . 1 Melee Attacks 7 | . . . . 7 Impact 7 | . . . . 7 Slashing . | . . . . . Piercing . | . . . . . Sneak Attacks 2 | . . . . 2 Combat Hostiles . | . . . . . Follow-up Attacks . | . . . . . Damage Inflicted 3491 | 187 151 379 107 2667 Guns 2055 | 187 31 379 9 1449 Cannons 674 | . . . . 674 Explosions 469 | . 120 . 98 251 Melee 293 | . . . . 293 Ramming . | . . . . . Kinetic 2055 | 187 31 379 9 1449 Thermal 419 | . . . . 419 Explosive 469 | . 120 . 98 251 Electromagnetic 255 | . . . . 255 Impact 293 | . . . . 293 Slashing . | . . . . . Piercing . | . . . . . Highest Corruption 9 | . . . . 9 Average Corruption 9 | . . . . 9 Corruption Purged . | . . . . . Corruption Blocked . | . . . . . Effects 45 | . . . . 45 Message Errors 10 | . . . . 10 Matter Fused 6 | . . . . 6 Heat Flow Errors 11 | . . . . 11 Energy Discharges 6 | . . . . 6 Parts Fused 1 | . . . . 1 Data Loss (minor) 6 | . . . . 6 Data Loss (major) 1 | . . . . 1 Misfires 1 | . . . . 1 Weapon Failures 3 | . . . . 3 Overload Shots . | . . . . . Overflow Damage 121 | . 4 . . 117 Projectiles 10 | . . . . 10 Explosions 9 | . 4 . . 5 Melee 102 | . . . . 102 Knockbacks 1 | . . . . 1 Impact 1 | . . . . 1 Kinetic . | . . . . . Secondary . | . . . . . Self-Inflicted Damage 94 | . 87 . . 7 Shots 2 | . 1 . . 1 Rammed . | . . . . . Targets Rammed 1 | . . . . 1 Kicked . | . . . . . Crushed 1 | . . . . 1 Highest Temperature 373 | . . 19 14 373 Average Temperature 88 | . . 5 5 103 Received Heat Transfer 1996 | . . 165 . 1831 Effects 5 | . . . . 5 Energy Bleed 3 | . . . . 3 Interference 2 | . . . . 2 Siege Activations . | . . . . . Martial Activations . | . . . . . Shielding Activations . | . . . . . Robots Disrupted . | . . . . . Combat Hostiles . | . . . . . Robots Corrupted 1 | . . . . 1 Combat Hostiles . | . . . . . Parts Fried . | . . . . . Impact Corruptions 4 | . . . . 4 Robots Melted . | . . . . . Combat Hostiles . | . . . . . Parts Melted 1 | . . . . 1 Heat Transferred 666 | . . . . 666 Parts Sabotaged . | . . . . . Parts Stolen . | . . . . . Parts Stripped . | . . . . . Power Chain Reactions . | . . . . . Alert | -11 -10 -9 -9 -8 ------- Run | Yrd Mat Mat Min Mat Maximum Alert Level . | . . . . . Low Security (%) 100 | 100 100 100 100 100 Level 1 . | . . . . . Level 2 . | . . . . . Level 3 . | . . . . . Level 4 . | . . . . . Level 5 . | . . . . . High Security . | . . . . . Max Security . | . . . . . Peak Influence 124 | 10 124 109 97 116 Initial 28 | . . 22 28 . Average 39 | 2 47 60 32 34 Influence Increases 1270 | 25 154 249 79 763 Destroy 0b10 Robot/C 780 | . 60 180 60 480 Destroy 0b10 Robot/NC 70 | 25 . . . 45 Destroy Leader 204 | . 10 40 10 144 Successful Hack 38 | . . 14 . 24 Disable Machine 45 | . 15 . . 30 Destroy Structure 58 | . 24 . 9 25 Lose Combat Pursuer 75 | . 45 15 . 15 Influence Decreases 1230 | 25 100 230 152 723 Entered New Map 77 | . . 32 45 . Time Decay 842 | 25 90 198 107 422 Lost Part 311 | . 10 . . 301 Squads Dispatched 9 | . . 2 . 7 Investigation 2 | . . 1 . 1 Extermination . | . . . . . Reinforcement 7 | . . 1 . 6 Assault . | . . . . . Garrison . | . . . . . Intercept . | . . . . . Searches Triggered . | . . . . . Construction Impeded 1 | . . . . 1 Haulers Reinforced . | . . . . . Active Scanning Responses . | . . . . . Cargo Convoy Interrupts . | . . . . . Stealth | -11 -10 -9 -9 -8 --------- Run | Yrd Mat Mat Min Mat Distress Signals 7 | . . 4 . 3 Communications Jammed . | . . . . . Distress Signals . | . . . . . Times Spotted 66 | . 7 16 3 40 Peak Tracking Total 7 | . 4 5 2 7 Tactical Retreats 3 | . 1 1 . 1 Traps | -11 -10 -9 -9 -8 ------- Run | Yrd Mat Mat Min Mat Traps Triggered . | . . . . . Indirectly . | . . . . . Trap Hack Attempts . | . . . . . Triggered . | . . . . . Disarmed . | . . . . . Reprogrammed . | . . . . . Reused . | . . . . . Traps Extracted . | . . . . . Installed . | . . . . . Triggered . | . . . . . Machines | -11 -10 -9 -9 -8 ---------- Run | Yrd Mat Mat Min Mat Machines Disabled 3 | . 1 . . 2 Max in Single Turn 1 | . 1 . . 1 Garrison Access 1 | . . . . 1 Machines Repaired . | . . . . . Machines Dismantled . | . . . . . Machines Sabotaged . | . . . . . Overloaded Fab Kills . | . . . . . Hacking | -11 -10 -9 -9 -8 --------- Run | Yrd Mat Mat Min Mat Machines Accessed 10 | . 2 4 . 4 Terminals 7 | . 2 3 . 2 Fabricators . | . . . . . Repair Stations . | . . . . . Recycling Units . | . . . . . Scanalyzers 2 | . . 1 . 1 Garrison Access 1 | . . . . 1 Total Hacks 19 | . 3 7 . 9 Successful 9 | . 2 3 . 4 Failed 10 | . 1 4 . 5 Catastrophic 3 | . . 2 . 1 Database Lockouts . | . . . . . Manual 2 | . . 2 . . Terminals 11 | . 3 5 . 3 Fabricators . | . . . . . Repair Stations . | . . . . . Recycling Units . | . . . . . Scanalyzers 6 | . . 2 . 4 Garrison Access 2 | . . . . 2 Terminal Hacks 4 | . 2 1 . 1 Emergency Access Points 1 | . 1 . . . Alert Level 1 | . . . . 1 Hauler Manifests 1 | . 1 . . . Zone Layout 1 | . . 1 . . Fabricator Hacks . | . . . . . Repair Station Hacks . | . . . . . Recycling Unit Hacks . | . . . . . Scanalyzer 4 | . . 2 . 2 Retrieve Study 4 | . . 2 . 2 Garrison Access Hacks 1 | . . . . 1 Seal Access 1 | . . . . 1 Unauthorized Hacks . | . . . . . Terminals . | . . . . . Fabricators . | . . . . . Repair Stations . | . . . . . Recycling Units . | . . . . . Scanalyzers . | . . . . . Garrison Access . | . . . . . Data Cores Recovered . | . . . . . Used . | . . . . . Hacking Detections 7 | . . 3 . 4 Full Trace Events 2 | . . 1 . 1 Feedback Events . | . . . . . Feedback Blocked . | . . . . . Robot Schematics Acquired . | . . . . . Robots Built . | . . . . . Authchips . | . . . . . Time . | . . . . . Total Robot Build Rating . | . . . . . Part Schematics Acquired . | . . . . . Parts Built . | . . . . . Authchips . | . . . . . Time . | . . . . . Total Part Build Rating . | . . . . . Part Studies Acquired 4 | . . 2 . 2 Parts Repaired . | . . . . . Time . | . . . . . Parts Recycled . | . . . . . Recycled Matter . | . . . . . Retrieved Matter . | . . . . . Retrieved Components . | . . . . . Parts Scanalyzed . | . . . . . Part Schematics Acquired . | . . . . . Parts Damaged . | . . . . . Bothacking | -11 -10 -9 -9 -8 ------------ Run | Yrd Mat Mat Min Mat Used RIF Installer . | . . . . . Robots Hacked . | . . . . . Non-combat . | . . . . . Combat . | . . . . . Robot Hacks Applied . | . . . . . Relay Couplers Released . | . . . . . Fabnet Peak Effective % . | . . . . . Robots Rewired . | . . . . . Allies Hacked . | . . . . . Hacks Repelled . | . . . . . Allies | -11 -10 -9 -9 -8 -------- Run | Yrd Mat Mat Min Mat Total Allies . | . . . . . Largest Group . | . . . . . Highest-Rated Group . | . . . . . Highest-Rated Ally . | . . . . . Total Orders . | . . . . . Ally Attacks . | . . . . . Total Damage . | . . . . . Kills . | . . . . . Allies Corrupted . | . . . . . Allies Melted . | . . . . . Intel | -11 -10 -9 -9 -8 ------- Run | Yrd Mat Mat Min Mat Active Infowar (turns) 163 | . . . . 163 Seismic 163 | . . . . 163 Robot Analysis Total . | . . . . . Derelict Logs Recovered . | . . . . . Drone Launches . | . . . . . Drone Recoveries . | . . . . . Exploration | -11 -10 -9 -9 -8 ------------- Run | Yrd Mat Mat Min Mat Turns Passed 2668 | 80 337 434 301 1516 Spaces Moved 1017 | 25 175 169 137 511 Core 4 | . . . . 4 Treads 788 | . 49 169 137 433 Legs 225 | 25 126 . . 74 Wheels . | . . . . . Hover . | . . . . . Flight . | . . . . . Fastest Speed 120 | 120 120 160 210 160 Average Speed 202 | 120 173 205 210 212 Slowest Speed 750 | 120 320 240 210 750 Overloaded Moves . | . . . . . Propulsion Burnouts . | . . . . . Robots Hopped . | . . . . . Potential Cave-ins . | . . . . . Cave-ins Triggered 1 | . . . . 1 Exploration Rate (%) 31 | 3 41 27 33 53 Regions Visited 4 Branch Regions 1 Pre-discovered Areas . | . . . . . Known Exits Taken . | . . . . . Unknown Exits Taken 4 | 1 1 1 1 . Scrap Searched . | . . . . . Spaces Dug . | . . . . . Terrain Destroyed 59 | . 23 . 9 27 Melee . | . . . . . Projectile 4 | . . . . 4 AOE 55 | . 23 . 9 23 Terrain Rammed . | . . . . . Walls Destroyed . | . . . . . Machines Disabled . | . . . . . Actions | -11 -10 -9 -9 -8 --------- Run | Yrd Mat Mat Min Mat Total 1394 | 49 206 210 146 783 Wait 115 | 5 10 6 5 89 Move 1013 | 24 174 168 136 511 Hop . | . . . . . Pick Up 54 | 3 8 7 1 35 Fast Attach 18 | 1 2 . . 15 Attach 23 | . . 2 . 21 Detach 1 | . . . . 1 Swap 9 | 1 1 2 1 4 Drop 19 | 1 6 . . 12 Fire 134 | 14 5 25 3 87 Melee 7 | . . . . 7 Ram . | . . . . . Kick . | . . . . . Crush 1 | . . . . 1 Escape Stasis . | . . . . . Rewire . | . . . . . Trap . | . . . . . Miscellaneous . | . . . . . Route ------- -11/Scrapyard -10/Materials (discovered 2 exits: *Mat x2) -9/Materials -9/Mines -8/Materials History --------- Turn | Location | Event 16 | -11/Scrapyard | Discovered new exit (range 3) 81 | -11/Scrapyard | Entered Materials 145 | -10/Materials | Discovered new exit (range 16) 309 | -10/Materials | Build established: Mutant 342 | -10/Materials | Discovered new exit (range 16) 418 | -10/Materials | Entered another Materials area 418 | -9/Materials | Evolved 2 slots: Propulsion x2 688 | -9/Materials | Discovered new exit (range 20) 852 | -9/Materials | Entered Mines 859 | -9/Mines | Received a Rocket Launcher from a helpful Derelict 1115 | -9/Mines | Discovered new exit (range 10) 1153 | -9/Mines | Entered Materials 1153 | -8/Materials | Evolved 2 slots: Propulsion x1, Utility x1 1317 | -8/Materials | Crushed by falling debris 1502 | -8/Materials | Core integrity fell below 50% 1560 | -8/Materials | Lost 20 parts (2p8n6u4w) 1775 | -8/Materials | Build established: Scavenger-Mutant 2649 | -8/Materials | Core integrity fell below 20% 2669 | -8/Materials | Destroyed by G-47 Trooper with Particle Gun Last Messages --------------- 02650_ U-05 Engineer system corrupted by crushing effect. 02650_ U-05 Engineer knocked back. 02651_ U-05 Engineer system terminally corrupted. 02651_ K-01 Serf collects debris. 02655_ Acquired Arm. Treads. 02656_ U-05 Engineer builds a Wall. 02658_ K-01 Serf collects debris. 02659_ Aluminum Leg destroyed. 02659_ Sneak attack on U-05 Engineer. 02659_ U-05 Engineer destroyed. 02660_ System corrupted: Heat flow error (+105). 02661_ K-01 Serf collects debris. 02661_ Shield Generator destroyed. 02662_ Acquired 6 matter. 02663_ Critical hit (Burn: +37). 02664_ K-01 Serf collects debris. 02665_ Lgt. Treads destroyed. 02665_ Critical hit (Burn: +37). 02668_ K-01 Serf collects debris. 02668_ Arm. Treads destroyed. Map ----- +----------------------------------------------------+ | | | | | | | | | | | | | | | | | | | | | | | | | | | | | | | | | | | | | ???????????????????????????????################### | | ???????????????????????????????# ] | | ???????????????????????????????# "" ]] = | | ???????????????????????##??????# "" ! ! """ """ | | ?????????????????????######?#### "T """ """ | | ?????????????????????+ #?#""# "" ! """ """ | | ?????????????????????# !# #% + "" """ """ | | ??????????????????####g %@!#" %# ! """ """ | | ??????????? gg g !! # | | ?????????? g Y%k H ##########+####+### | | ??????????? #????????? ? | | ???????????##+####### #????????? ??????? | | ????????????????????# #????????? ??????? | | ????????????????????######## #????????? ?????? | | ???????????????????????????# +????????? ?????? | | ???????????????????????????# #????????? ?##### | | ???????????????????????????# #?????##?? ?# | | ??????????????????????????? ?????# ? ??# ! | | ??????????????????????????? ?#### ??# | | ??????????????????????????? ?? " # ! | | ??????????????????????????? ?? "T + | | ?????????????????????????? # """ | | ??????????????????????????? ?#### ??# """ | | ???????????????????????????? ??????# ????# """ | | ?????????????????????????????????????##??????##### | | ?????????????????????????????????????????????????? | | ?????????????????????????????????????????????????? | | ?????????????????????????????????????????????????? | | ?????????????????????????????????????????????????? | | ?????????????????????????????????????????????????? | | ????????????????????????????????????????????????+ | | ?????????????????????????????????????????????????? | +----------------------------------------------------+ Best States ------------- Heat Dissipation 31 Energy Generation 14 Energy Capacity 250 Matter Stores 300 Matter Capacity 300 Sight Range 16 Terrain Scan Density 10 Armor Coverage 450 Core Shielding 20 Evasion (%) 55 Targeting Accuracy 8 Recoil Reduction 9 Item Schematics ----------------- None Robot Schematics ------------------ None Fabricated ------------ Nothing Repaired ---------- Nothing Studied --------- Imp. Treads | -9/Materials | Hacked Grenade Launcher | -9/Materials | Hacked Hvy. Assault Rifle | -8/Materials | Hacked Lgt. Assault Rifle | -8/Materials | Hacked Alien Tech Used ----------------- None Achievements -------------- None Challenges ------------ None Game ------ Seed TiamatMediumArmor Manual? 0 Play Time 00:26:17 Cumulative 181.2 hours Start 2026.01.26 @ 15:44:36 End 2026.01.26 @ 18:25:55 Sessions 3 Manual Loads 0 Difficulty Rogue Special Mode None Game No. 302 Rogue 298 Adventurer 0 Explorer 4 Win Type - Total 0 Types 0/0/0/0/0/0/0/0/0/0 Lore% 27 Gallery% 43 Achievement% 30 Wizard Run 0 Options --------- Layout 0 ASCII 0 Keyboard 1 Movement Arrows Keybinds 0 Fullscreen 1 Font 24/Smallcaps Map View 183x50 Zoom Use 0% Tactical HUD 1 Map Filters NONE Filters NONE Steam 1 RUN: 58e115df-33a7-4595-8b4c-d4ce27809e84